[Event "Titled Tuesday Blitz January 17 Late 2023"]
[White "AidenRchess"]
[Black "Leiva, Gianmarco"]
[BlackFideId "3804399"]
[WhiteElo "2443"]
[BlackElo "2392"]
[Result "0-1"]
[Round "05"]
[TimeControl "180+2"]
[Date "2023.01.17"]
[WhiteClock "0:00:42"]
[BlackClock "0:00:08"]

1. e4 {[%clk 0:03:00]}  c5 {[%clk 0:02:54]} 2. Nf3 {[%clk 0:03:00]}  d6 {[%clk 0:02:54]} 3. Bb5+ {[%clk 0:02:57]}  Nd7 {[%clk 0:02:54]} 4. Ba4 {[%clk 0:02:57]}  Nf6 {[%clk 0:02:50]} 5. O-O {[%clk 0:02:57]}  a6 {[%clk 0:02:40]} 6. c4 {[%clk 0:02:56]}  g6 {[%clk 0:02:38]} 7. Nc3 {[%clk 0:02:54]}  Bg7 {[%clk 0:02:39]} 8. d4 {[%clk 0:02:55]}  cxd4 {[%clk 0:02:38]} 9. Nxd4 {[%clk 0:02:56]}  O-O {[%clk 0:02:38]} 10. Re1 {[%clk 0:02:54]}  Ne5 {[%clk 0:02:37]} 11. Bb3 {[%clk 0:02:51]}  Bd7 {[%clk 0:02:29]} 12. h3 {[%clk 0:02:48]}  Rc8 {[%clk 0:02:29]} 13. Qe2 {[%clk 0:02:46]}  Qc7 {[%clk 0:01:06]} 14. Nd5 {[%clk 0:02:31]}  Nxd5 {[%clk 0:01:06]} 15. cxd5 {[%clk 0:02:28]}  Nc4 {[%clk 0:01:01]} 16. Be3 {[%clk 0:02:09]}  Nxe3 {[%clk 0:00:58]} 17. Qxe3 {[%clk 0:02:10]}  Qb6 {[%clk 0:00:53]} 18. Rad1 {[%clk 0:02:10]}  Rc5 {[%clk 0:00:36]} 19. h4 {[%clk 0:02:05]}  a5 {[%clk 0:00:35]} 20. Rd2 {[%clk 0:01:54]}  Rfc8 {[%clk 0:00:34]} 21. h5 {[%clk 0:01:51]}  a4 {[%clk 0:00:31]} 22. Bd1 {[%clk 0:01:51]}  Rc1 {[%clk 0:00:30]} 23. hxg6 {[%clk 0:01:46]}  hxg6 {[%clk 0:00:30]} 24. Rf1 {[%clk 0:01:37]}  R8c4 {[%clk 0:00:20]} 25. Nc2 {[%clk 0:01:14]}  Qxe3 {[%clk 0:00:15]} 26. Nxe3 {[%clk 0:01:14]}  Rc5 {[%clk 0:00:12]} 27. Be2 {[%clk 0:01:03]}  Rxf1+ {[%clk 0:00:10]} 28. Bxf1 {[%clk 0:01:04]}  Rc1 {[%clk 0:00:09]} 29. f3 {[%clk 0:01:01]}  Bh6 {[%clk 0:00:08]} 30. Re2 {[%clk 0:00:48]}  Bb5 {[%clk 0:00:08]} 31. Ng4 {[%clk 0:00:41]}  Bxe2 {[%clk 0:00:08]} 32. Nxh6+ {[%clk 0:00:41]}  Kg7 {[%clk 0:00:08]} 33. Ng4 {[%clk 0:00:41]}  Rxf1+ {[%clk 0:00:09]} 34. Kh2 {[%clk 0:00:41]}  Rb1 {[%clk 0:00:09]} 35. b4 {[%clk 0:00:41]}  Rxb4 {[%clk 0:00:09]} 36. Ne3 {[%clk 0:00:41]}  Rb2 {[%clk 0:00:09]} 37. a3 {[%clk 0:00:42]}  b5 {[%clk 0:00:10]} 38. Nc4 {[%clk 0:00:40]}  bxc4 {[%clk 0:00:08]} 39. Kg3 {[%clk 0:00:39]}  c3 {[%clk 0:00:08]} 40. e5 {[%clk 0:00:40]}  c2 {[%clk 0:00:08]} 41. exd6 {[%clk 0:00:41]}  exd6 {[%clk 0:00:08]} 42. f4 {[%clk 0:00:41]}  c1=Q {[%clk 0:00:08]} 43. Kh3 {[%clk 0:00:42]}  Qxf4 {[%clk 0:00:08]} 44. g3 {[%clk 0:00:42]}  Bg4+ {[%clk 0:00:07]} 45. Kh4 {[%clk 0:00:42]}  g5# {[%clk 0:00:08]} 0-1


[Site "https://www.chess.com"]

[Event "Titled Tuesday Blitz January 17 Late 2023"]
[White "Tokhirjonova, Gulrukhbegim"]
[Black "Aggelis, Nikolaos"]
[WhiteFideId "14203626"]
[BlackFideId "4213220"]
[WhiteElo "2340"]
[BlackElo "2270"]
[Result "1-0"]
[Round "05"]
[TimeControl "180+2"]
[Date "2023.01.17"]
[WhiteClock "0:01:04"]
[BlackClock "0:00:04"]

1. e4 {[%clk 0:03:00]}  a6 {[%clk 0:02:55]} 2. c4 {[%clk 0:02:59]}  e6 {[%clk 0:02:52]} 3. d4 {[%clk 0:02:59]}  b5 {[%clk 0:02:41]} 4. cxb5 {[%clk 0:02:53]}  Bb7 {[%clk 0:02:42]} 5. Nc3 {[%clk 0:02:52]}  Nf6 {[%clk 0:02:33]} 6. bxa6 {[%clk 0:02:48]}  Nxa6 {[%clk 0:02:29]} 7. f3 {[%clk 0:02:40]}  Bb4 {[%clk 0:02:22]} 8. Bd3 {[%clk 0:02:35]}  O-O {[%clk 0:02:16]} 9. Ne2 {[%clk 0:02:34]}  c5 {[%clk 0:02:06]} 10. Be3 {[%clk 0:02:28]}  Rc8 {[%clk 0:02:00]} 11. O-O {[%clk 0:02:26]}  c4 {[%clk 0:01:40]} 12. Bc2 {[%clk 0:02:26]}  d6 {[%clk 0:01:39]} 13. Kh1 {[%clk 0:02:16]}  e5 {[%clk 0:01:32]} 14. Qe1 {[%clk 0:02:14]}  Re8 {[%clk 0:01:20]} 15. Rd1 {[%clk 0:02:09]}  d5 {[%clk 0:01:16]} 16. dxe5 {[%clk 0:02:02]}  Rxe5 {[%clk 0:01:16]} 17. Bd4 {[%clk 0:02:01]}  Rh5 {[%clk 0:01:13]} 18. Qg3 {[%clk 0:01:58]}  Qe7 {[%clk 0:00:50]} 19. exd5 {[%clk 0:01:51]}  Bd6 {[%clk 0:00:44]} 20. f4 {[%clk 0:01:35]}  Nb4 {[%clk 0:00:43]} 21. Bb1 {[%clk 0:01:30]}  Nbxd5 {[%clk 0:00:40]} 22. Nxd5 {[%clk 0:01:26]}  Bxd5 {[%clk 0:00:36]} 23. Nc3 {[%clk 0:01:26]}  Ba8 {[%clk 0:00:32]} 24. Rfe1 {[%clk 0:01:26]}  Qd8 {[%clk 0:00:28]} 25. Be5 {[%clk 0:01:19]}  Rc6 {[%clk 0:00:11]} 26. Nb5 {[%clk 0:01:19]}  Ne8 {[%clk 0:00:09]} 27. Nxd6 {[%clk 0:01:17]}  Rxd6 {[%clk 0:00:07]} 28. Rxd6 {[%clk 0:01:16]}  Qc8 {[%clk 0:00:06]} 29. Red1 {[%clk 0:01:09]}  Rh3 {[%clk 0:00:06]} 30. Rd8 {[%clk 0:01:04]}  Rxg3 {[%clk 0:00:05]} 31. Rxc8 {[%clk 0:01:04]}  Bxg2+ {[%clk 0:00:03]} 32. Kg1 {[%clk 0:01:05]}  Bb7+ {[%clk 0:00:02]} 33. hxg3 {[%clk 0:01:05]}  Bxc8 {[%clk 0:00:03]} 34. Rd8 {[%clk 0:01:05]}  Kf8 {[%clk 0:00:03]} 35. Rxc8 {[%clk 0:01:05]}  Ke7 {[%clk 0:00:03]} 36. Be4 {[%clk 0:01:03]}  f6 {[%clk 0:00:03]} 37. Bd4 {[%clk 0:01:03]}  Nd6 {[%clk 0:00:03]} 38. Bc5 {[%clk 0:01:04]}  Kd7 {[%clk 0:00:02]} 39. Bxd6 {[%clk 0:01:04]}  Kxc8 {[%clk 0:00:03]} 40. Bd5 {[%clk 0:01:04]}  Kd7 {[%clk 0:00:03]} 41. Bb4 {[%clk 0:01:04]}  g6 {[%clk 0:00:03]} 42. Bxc4 {[%clk 0:01:05]}  f5 {[%clk 0:00:04]} 43. Bc3 {[%clk 0:01:04]} 1-0


[Site "https://www.chess.com"]

[Event "Titled Tuesday Blitz January 17 Late 2023"]
[White "Pein, Jonathan"]
[Black "Bikuzhin, Maksim"]
[WhiteFideId "417092"]
[BlackFideId "24128015"]
[WhiteElo "2265"]
[BlackElo "2279"]
[Result "0-1"]
[Round "05"]
[TimeControl "180+2"]
[Date "2023.01.17"]
[WhiteClock "0:00:13"]
[BlackClock "0:00:30"]

1. e4 {[%clk 0:03:00]}  c5 {[%clk 0:02:58]} 2. g3 {[%clk 0:03:01]}  d5 {[%clk 0:02:57]} 3. exd5 {[%clk 0:03:02]}  Qxd5 {[%clk 0:02:57]} 4. Nf3 {[%clk 0:03:02]}  Bg4 {[%clk 0:02:56]} 5. Bg2 {[%clk 0:03:03]}  Qe6+ {[%clk 0:02:57]} 6. Kf1 {[%clk 0:03:03]}  Nc6 {[%clk 0:02:44]} 7. h3 {[%clk 0:03:04]}  Bh5 {[%clk 0:02:39]} 8. d3 {[%clk 0:03:04]}  Nf6 {[%clk 0:02:34]} 9. Na3 {[%clk 0:03:03]}  Qd7 {[%clk 0:02:31]} 10. Nc4 {[%clk 0:03:03]}  e6 {[%clk 0:02:27]} 11. g4 {[%clk 0:03:01]}  Bg6 {[%clk 0:02:27]} 12. Nfe5 {[%clk 0:03:01]}  Nxe5 {[%clk 0:02:23]} 13. Nxe5 {[%clk 0:03:02]}  Qc7 {[%clk 0:02:24]} 14. Bf4 {[%clk 0:03:02]}  Bd6 {[%clk 0:02:19]} 15. Nxg6 {[%clk 0:03:02]}  hxg6 {[%clk 0:02:19]} 16. Bxd6 {[%clk 0:03:03]}  Qxd6 {[%clk 0:02:19]} 17. Bxb7 {[%clk 0:03:03]}  Rb8 {[%clk 0:02:15]} 18. Qf3 {[%clk 0:03:03]}  O-O {[%clk 0:02:07]} 19. b3 {[%clk 0:02:57]}  Nd7 {[%clk 0:02:03]} 20. Re1 {[%clk 0:02:39]}  Rfd8 {[%clk 0:01:47]} 21. a4 {[%clk 0:02:36]}  Ne5 {[%clk 0:01:43]} 22. Qe4 {[%clk 0:02:22]}  f6 {[%clk 0:01:31]} 23. Kg2 {[%clk 0:01:52]}  Qb6 {[%clk 0:01:22]} 24. f4 {[%clk 0:01:48]}  Rd4 {[%clk 0:01:22]} 25. a5 {[%clk 0:01:32]}  Qb4 {[%clk 0:01:15]} 26. fxe5 {[%clk 0:01:22]}  Rxe4 {[%clk 0:01:14]} 27. Bxe4 {[%clk 0:01:23]}  Qd2+ {[%clk 0:01:15]} 28. Kg3 {[%clk 0:01:22]}  f5 {[%clk 0:01:11]} 29. gxf5 {[%clk 0:01:19]}  gxf5 {[%clk 0:01:11]} 30. Bf3 {[%clk 0:01:19]}  f4+ {[%clk 0:01:05]} 31. Kg4 {[%clk 0:01:18]}  Qf2 {[%clk 0:01:04]} 32. Rhg1 {[%clk 0:01:16]}  Rf8 {[%clk 0:00:58]} 33. Ref1 {[%clk 0:01:03]}  Qxc2 {[%clk 0:00:57]} 34. Be4 {[%clk 0:01:03]}  Qb2 {[%clk 0:00:52]} 35. Rg2 {[%clk 0:00:58]}  Qxe5 {[%clk 0:00:52]} 36. Kf3 {[%clk 0:00:57]}  c4 {[%clk 0:00:45]} 37. bxc4 {[%clk 0:00:54]}  Qxa5 {[%clk 0:00:46]} 38. Rfg1 {[%clk 0:00:54]}  Rf7 {[%clk 0:00:41]} 39. Rg6 {[%clk 0:00:54]}  Qd2 {[%clk 0:00:37]} 40. R1g2 {[%clk 0:00:25]}  Qe3+ {[%clk 0:00:35]} 41. Kg4 {[%clk 0:00:26]}  f3 {[%clk 0:00:34]} 42. Rb2 {[%clk 0:00:14]}  Qf4+ {[%clk 0:00:29]} 43. Kh5 {[%clk 0:00:14]}  Qe5+ {[%clk 0:00:30]} 44. Kh4 {[%clk 0:00:13]}  Qxb2 {[%clk 0:00:30]} 0-1


[Site "https://www.chess.com"]

[Event "Titled Tuesday Blitz January 17 Late 2023"]
[White "Rojas Salas, Steven"]
[Black "Kleiman, Jake"]
[WhiteFideId "3819434"]
[BlackFideId "2020041"]
[WhiteElo "2217"]
[BlackElo "2399"]
[Result "1-0"]
[Round "05"]
[TimeControl "180+2"]
[Date "2023.01.17"]
[WhiteClock "0:00:20"]
[BlackClock "0:00:42"]

1. c4 {[%clk 0:02:49]}  e6 {[%clk 0:02:59]} 2. e4 {[%clk 0:02:46]}  e5 {[%clk 0:02:59]} 3. Nf3 {[%clk 0:02:40]}  Nc6 {[%clk 0:02:58]} 4. d4 {[%clk 0:02:36]}  exd4 {[%clk 0:02:58]} 5. Nxd4 {[%clk 0:02:37]}  Bb4+ {[%clk 0:02:58]} 6. Bd2 {[%clk 0:02:35]}  Bxd2+ {[%clk 0:02:53]} 7. Qxd2 {[%clk 0:02:36]}  Nf6 {[%clk 0:02:51]} 8. Nc3 {[%clk 0:02:32]}  O-O {[%clk 0:02:48]} 9. Be2 {[%clk 0:02:24]}  Re8 {[%clk 0:02:47]} 10. Qd3 {[%clk 0:02:16]}  d6 {[%clk 0:02:45]} 11. O-O {[%clk 0:02:08]}  Qe7 {[%clk 0:02:40]} 12. f3 {[%clk 0:01:55]}  Nxd4 {[%clk 0:02:35]} 13. Qxd4 {[%clk 0:01:56]}  Qe5 {[%clk 0:02:29]} 14. Rfd1 {[%clk 0:01:54]}  Be6 {[%clk 0:02:26]} 15. Qxe5 {[%clk 0:01:33]}  dxe5 {[%clk 0:02:26]} 16. Nd5 {[%clk 0:01:33]}  Rac8 {[%clk 0:02:16]} 17. Nxf6+ {[%clk 0:01:32]}  gxf6 {[%clk 0:02:16]} 18. c5 {[%clk 0:01:31]}  Kf8 {[%clk 0:02:15]} 19. b4 {[%clk 0:01:23]}  Ke7 {[%clk 0:02:14]} 20. a3 {[%clk 0:01:16]}  f5 {[%clk 0:02:14]} 21. Kf2 {[%clk 0:01:14]}  Rg8 {[%clk 0:02:10]} 22. exf5 {[%clk 0:01:10]}  Bxf5 {[%clk 0:02:10]} 23. Rd5 {[%clk 0:01:10]}  f6 {[%clk 0:02:09]} 24. Rad1 {[%clk 0:01:10]}  Be6 {[%clk 0:02:04]} 25. R5d2 {[%clk 0:01:10]}  h6 {[%clk 0:01:58]} 26. g3 {[%clk 0:01:03]}  Rcf8 {[%clk 0:01:54]} 27. Ke3 {[%clk 0:01:02]}  h5 {[%clk 0:01:50]} 28. f4 {[%clk 0:00:41]}  h4 {[%clk 0:01:51]} 29. Kf2 {[%clk 0:00:41]}  e4 {[%clk 0:01:24]} 30. g4 {[%clk 0:00:18]}  Bxg4 {[%clk 0:01:12]} 31. Bxg4 {[%clk 0:00:18]}  Rxg4 {[%clk 0:01:13]} 32. Ke3 {[%clk 0:00:19]}  f5 {[%clk 0:00:53]} 33. Rd7+ {[%clk 0:00:19]}  Ke6 {[%clk 0:00:54]} 34. Rxc7 {[%clk 0:00:20]}  Rg2 {[%clk 0:00:42]} 35. Rd6# {[%clk 0:00:20]} 1-0


[Site "https://www.chess.com"]

[Event "Titled Tuesday Blitz January 17 Late 2023"]
[White "Yedidia, Daniel"]
[Black "Andrews, Todd"]
[WhiteFideId "30905907"]
[BlackFideId "2012456"]
[WhiteElo "2041"]
[BlackElo "2220"]
[Result "1/2-1/2"]
[Round "05"]
[TimeControl "180+2"]
[Date "2023.01.17"]
[WhiteClock "0:00:04"]
[BlackClock "0:00:04"]

1. d4 {[%clk 0:03:00]}  c5 {[%clk 0:02:59]} 2. d5 {[%clk 0:03:00]}  g6 {[%clk 0:03:00]} 3. c4 {[%clk 0:02:59]}  Bg7 {[%clk 0:03:01]} 4. Nc3 {[%clk 0:02:59]}  d6 {[%clk 0:02:55]} 5. e4 {[%clk 0:02:57]}  e5 {[%clk 0:02:55]} 6. Bd3 {[%clk 0:02:57]}  a6 {[%clk 0:02:55]} 7. Nge2 {[%clk 0:02:57]}  Ne7 {[%clk 0:02:55]} 8. Be3 {[%clk 0:02:58]}  O-O {[%clk 0:02:55]} 9. O-O {[%clk 0:02:56]}  f5 {[%clk 0:02:55]} 10. f4 {[%clk 0:02:56]}  b5 {[%clk 0:02:46]} 11. cxb5 {[%clk 0:02:53]}  axb5 {[%clk 0:02:46]} 12. Bxb5 {[%clk 0:02:51]}  Ba6 {[%clk 0:02:37]} 13. fxe5 {[%clk 0:02:47]}  Bxe5 {[%clk 0:02:35]} 14. Bf4 {[%clk 0:02:44]}  Bg7 {[%clk 0:02:24]} 15. a4 {[%clk 0:02:36]}  Kh8 {[%clk 0:02:07]} 16. Kh1 {[%clk 0:02:35]}  fxe4 {[%clk 0:01:59]} 17. Bxa6 {[%clk 0:02:33]}  Nxa6 {[%clk 0:01:56]} 18. Nxe4 {[%clk 0:02:33]}  Nf5 {[%clk 0:01:56]} 19. Ng5 {[%clk 0:02:26]}  Nc7 {[%clk 0:01:52]} 20. Nc3 {[%clk 0:02:17]}  Nd4 {[%clk 0:01:43]} 21. Be3 {[%clk 0:02:07]}  Qe7 {[%clk 0:01:40]} 22. Bd2 {[%clk 0:01:53]}  h6 {[%clk 0:01:28]} 23. Nf3 {[%clk 0:01:46]}  Nf5 {[%clk 0:01:16]} 24. Qc2 {[%clk 0:01:41]}  Qf7 {[%clk 0:01:08]} 25. Rad1 {[%clk 0:01:37]}  Nxd5 {[%clk 0:01:03]} 26. Nxd5 {[%clk 0:01:37]}  Qxd5 {[%clk 0:01:03]} 27. Bxh6 {[%clk 0:01:36]}  Ng3+ {[%clk 0:00:41]} 28. hxg3 {[%clk 0:01:28]}  Qh5+ {[%clk 0:00:41]} 29. Nh4 {[%clk 0:01:25]}  Qxh6 {[%clk 0:00:34]} 30. Qxg6 {[%clk 0:01:23]}  Rxf1+ {[%clk 0:00:30]} 31. Rxf1 {[%clk 0:01:23]}  Qxg6 {[%clk 0:00:21]} 32. Nxg6+ {[%clk 0:01:24]}  Kh7 {[%clk 0:00:22]} 33. Ne7 {[%clk 0:01:24]}  Rxa4 {[%clk 0:00:21]} 34. b3 {[%clk 0:01:06]}  Rb4 {[%clk 0:00:20]} 35. Rf3 {[%clk 0:01:07]}  Be5 {[%clk 0:00:17]} 36. Nc6 {[%clk 0:01:07]}  Re4 {[%clk 0:00:15]} 37. Kh2 {[%clk 0:01:05]}  d5 {[%clk 0:00:13]} 38. Kh3 {[%clk 0:01:03]}  d4 {[%clk 0:00:13]} 39. g4 {[%clk 0:01:02]}  Bg7 {[%clk 0:00:12]} 40. Kg3 {[%clk 0:00:58]}  Re6 {[%clk 0:00:13]} 41. Na5 {[%clk 0:00:55]}  Be5+ {[%clk 0:00:13]} 42. Kf2 {[%clk 0:00:54]}  Bf6 {[%clk 0:00:12]} 43. Nc4 {[%clk 0:00:53]}  Bh4+ {[%clk 0:00:12]} 44. g3 {[%clk 0:00:53]}  Bg5 {[%clk 0:00:13]} 45. Rf5 {[%clk 0:00:53]}  Be7 {[%clk 0:00:10]} 46. Re5 {[%clk 0:00:51]}  Rf6+ {[%clk 0:00:09]} 47. Ke2 {[%clk 0:00:49]}  Bf8 {[%clk 0:00:09]} 48. g5 {[%clk 0:00:48]}  Rf7 {[%clk 0:00:09]} 49. Re6 {[%clk 0:00:47]}  Kg7 {[%clk 0:00:08]} 50. Ne5 {[%clk 0:00:47]}  Re7 {[%clk 0:00:09]} 51. Rxe7+ {[%clk 0:00:37]}  Bxe7 {[%clk 0:00:10]} 52. g6 {[%clk 0:00:30]}  Bd6 {[%clk 0:00:10]} 53. Nd3 {[%clk 0:00:25]}  Kxg6 {[%clk 0:00:10]} 54. Kf3 {[%clk 0:00:25]}  Kf5 {[%clk 0:00:10]} 55. g4+ {[%clk 0:00:25]}  Kg5 {[%clk 0:00:11]} 56. Nf2 {[%clk 0:00:24]}  Be5 {[%clk 0:00:09]} 57. Ne4+ {[%clk 0:00:25]}  Kg6 {[%clk 0:00:08]} 58. Nxc5 {[%clk 0:00:26]}  Kg5 {[%clk 0:00:06]} 59. Ne4+ {[%clk 0:00:22]}  Kg6 {[%clk 0:00:06]} 60. Ke2 {[%clk 0:00:23]}  Kf7 {[%clk 0:00:06]} 61. Kd3 {[%clk 0:00:23]}  Ke6 {[%clk 0:00:06]} 62. b4 {[%clk 0:00:22]}  Kd5 {[%clk 0:00:07]} 63. g5 {[%clk 0:00:21]}  Ke6 {[%clk 0:00:05]} 64. b5 {[%clk 0:00:18]}  Kf5 {[%clk 0:00:05]} 65. b6 {[%clk 0:00:17]}  Kg6 {[%clk 0:00:06]} 66. b7 {[%clk 0:00:18]}  Kf5 {[%clk 0:00:06]} 67. g6 {[%clk 0:00:03]}  Kxg6 {[%clk 0:00:05]} 68. Nc5 {[%clk 0:00:04]}  Kf7 {[%clk 0:00:05]} 69. Nd7 {[%clk 0:00:04]}  Bc7 {[%clk 0:00:04]} 70. Kxd4 {[%clk 0:00:05]}  Ke7 {[%clk 0:00:05]} 71. Nc5 {[%clk 0:00:05]}  Kd6 {[%clk 0:00:05]} 72. Kc4 {[%clk 0:00:05]}  Kc6 {[%clk 0:00:05]} 73. Kb4 {[%clk 0:00:06]}  Bd6 {[%clk 0:00:05]} 74. Kc4 {[%clk 0:00:06]}  Kc7 {[%clk 0:00:04]} 75. Kb5 {[%clk 0:00:03]}  Bxc5 {[%clk 0:00:04]} 76. Kxc5 {[%clk 0:00:04]}  Kxb7 {[%clk 0:00:04]} 1/2-1/2


[Site "https://www.chess.com"]

[Event "Titled Tuesday Blitz January 17 Late 2023"]
[White "Olafsson, Helgi"]
[Black "Novikov, Evgenij"]
[WhiteFideId "2300010"]
[BlackFideId "4125380"]
[WhiteElo "2491"]
[BlackElo "2276"]
[Result "1-0"]
[Round "05"]
[TimeControl "180+2"]
[Date "2023.01.17"]
[WhiteClock "0:01:00"]
[BlackClock "0:00:09"]

1. Nf3 {[%clk 0:02:59]}  Nf6 {[%clk 0:02:58]} 2. c4 {[%clk 0:02:59]}  c6 {[%clk 0:02:58]} 3. d4 {[%clk 0:02:56]}  d6 {[%clk 0:02:57]} 4. Nc3 {[%clk 0:02:55]}  Nbd7 {[%clk 0:02:58]} 5. e4 {[%clk 0:02:54]}  Qc7 {[%clk 0:02:57]} 6. Be2 {[%clk 0:02:51]}  e5 {[%clk 0:02:54]} 7. O-O {[%clk 0:02:50]}  Be7 {[%clk 0:02:52]} 8. Bg5 {[%clk 0:02:49]}  h6 {[%clk 0:02:50]} 9. Bh4 {[%clk 0:02:48]}  O-O {[%clk 0:02:48]} 10. Rc1 {[%clk 0:02:45]}  a5 {[%clk 0:02:40]} 11. Re1 {[%clk 0:02:43]}  Re8 {[%clk 0:02:37]} 12. Bf1 {[%clk 0:02:39]}  Nh5 {[%clk 0:02:12]} 13. Bxe7 {[%clk 0:02:36]}  Rxe7 {[%clk 0:02:13]} 14. g3 {[%clk 0:02:25]}  Nhf6 {[%clk 0:02:08]} 15. Bg2 {[%clk 0:02:22]}  exd4 {[%clk 0:02:04]} 16. Nxd4 {[%clk 0:02:21]}  Nc5 {[%clk 0:02:03]} 17. Qd2 {[%clk 0:02:11]}  a4 {[%clk 0:01:53]} 18. Rb1 {[%clk 0:02:03]}  Be6 {[%clk 0:01:52]} 19. b4 {[%clk 0:01:56]}  axb3 {[%clk 0:01:48]} 20. axb3 {[%clk 0:01:56]}  Ra3 {[%clk 0:01:38]} 21. Ndb5 {[%clk 0:01:41]}  cxb5 {[%clk 0:01:31]} 22. Nxb5 {[%clk 0:01:41]}  Qa5 {[%clk 0:01:19]} 23. Qxd6 {[%clk 0:01:40]}  Rd7 {[%clk 0:00:53]} 24. Qxc5 {[%clk 0:01:33]}  Rxb3 {[%clk 0:00:51]} 25. Ra1 {[%clk 0:01:28]}  Qd2 {[%clk 0:00:45]} 26. e5 {[%clk 0:01:23]}  Nh5 {[%clk 0:00:16]} 27. Bf3 {[%clk 0:01:14]}  Qg5 {[%clk 0:00:14]} 28. Ra8+ {[%clk 0:01:04]}  Kh7 {[%clk 0:00:13]} 29. h4 {[%clk 0:01:01]}  Qg6 {[%clk 0:00:09]} 30. Qf8 {[%clk 0:01:00]} 1-0


[Site "https://www.chess.com"]

[Event "Titled Tuesday Blitz January 17 Late 2023"]
[White "Sanchez, Robert"]
[Black "Karttunen, Mika"]
[WhiteFideId "2034360"]
[BlackFideId "502081"]
[WhiteElo "1966"]
[BlackElo "2490"]
[Result "1-0"]
[Round "05"]
[TimeControl "180+2"]
[Date "2023.01.17"]
[WhiteClock "0:00:03"]
[BlackClock "0:00:03"]

1. e4 {[%clk 0:03:00]}  e5 {[%clk 0:02:58]} 2. Nf3 {[%clk 0:03:00]}  Nc6 {[%clk 0:02:58]} 3. Bb5 {[%clk 0:03:00]}  Nf6 {[%clk 0:02:54]} 4. d3 {[%clk 0:02:59]}  d6 {[%clk 0:02:52]} 5. c3 {[%clk 0:02:57]}  Be7 {[%clk 0:02:51]} 6. O-O {[%clk 0:02:57]}  O-O {[%clk 0:02:51]} 7. h3 {[%clk 0:02:56]}  a6 {[%clk 0:02:46]} 8. Ba4 {[%clk 0:02:56]}  b5 {[%clk 0:02:45]} 9. Bc2 {[%clk 0:02:56]}  Bb7 {[%clk 0:02:45]} 10. Re1 {[%clk 0:02:56]}  h6 {[%clk 0:02:44]} 11. Nbd2 {[%clk 0:02:56]}  Re8 {[%clk 0:02:29]} 12. Nf1 {[%clk 0:02:56]}  Bf8 {[%clk 0:02:25]} 13. Ng3 {[%clk 0:02:54]}  g6 {[%clk 0:02:23]} 14. Be3 {[%clk 0:02:54]}  d5 {[%clk 0:02:11]} 15. Qd2 {[%clk 0:01:52]}  Kh7 {[%clk 0:02:07]} 16. Rad1 {[%clk 0:01:42]}  d4 {[%clk 0:01:57]} 17. cxd4 {[%clk 0:01:42]}  exd4 {[%clk 0:01:53]} 18. Bf4 {[%clk 0:01:38]}  Bb4 {[%clk 0:01:51]} 19. Qc1 {[%clk 0:01:38]}  Bxe1 {[%clk 0:01:49]} 20. Bxh6 {[%clk 0:01:38]}  Bb4 {[%clk 0:01:39]} 21. Bb3 {[%clk 0:01:19]}  Ng8 {[%clk 0:01:24]} 22. Ng5+ {[%clk 0:01:12]}  Kxh6 {[%clk 0:01:19]} 23. Nxf7+ {[%clk 0:01:12]}  Kg7 {[%clk 0:01:19]} 24. Nxd8 {[%clk 0:01:08]}  Raxd8 {[%clk 0:01:15]} 25. Qg5 {[%clk 0:01:04]}  Be7 {[%clk 0:00:36]} 26. Nf5+ {[%clk 0:00:38]}  Kh7 {[%clk 0:00:28]} 27. Nxe7 {[%clk 0:00:37]}  Ngxe7 {[%clk 0:00:19]} 28. f4 {[%clk 0:00:32]}  Kg7 {[%clk 0:00:12]} 29. Rc1 {[%clk 0:00:28]}  Rd6 {[%clk 0:00:11]} 30. e5 {[%clk 0:00:27]}  Rdd8 {[%clk 0:00:07]} 31. Qf6+ {[%clk 0:00:24]}  Kh6 {[%clk 0:00:07]} 32. Bf7 {[%clk 0:00:17]}  Rf8 {[%clk 0:00:06]} 33. f5 {[%clk 0:00:13]}  Rxf7 {[%clk 0:00:05]} 34. Qxf7 {[%clk 0:00:10]}  Nxf5 {[%clk 0:00:06]} 35. Qxc7 {[%clk 0:00:07]}  Rb8 {[%clk 0:00:05]} 36. Rxc6 {[%clk 0:00:06]}  Bxc6 {[%clk 0:00:05]} 37. Qxc6 {[%clk 0:00:07]}  Rd8 {[%clk 0:00:04]} 38. Qxa6 {[%clk 0:00:05]}  Re8 {[%clk 0:00:04]} 39. Qf6 {[%clk 0:00:04]}  Re7 {[%clk 0:00:04]} 40. g4 {[%clk 0:00:04]}  Rc7 {[%clk 0:00:03]} 41. gxf5 {[%clk 0:00:04]}  Rg7 {[%clk 0:00:03]} 42. h4 {[%clk 0:00:03]}  Kh5 {[%clk 0:00:03]} 43. Qg5# {[%clk 0:00:03]} 1-0


[Site "https://www.chess.com"]

[Event "Titled Tuesday Blitz January 17 Late 2023"]
[White "Rangel, Daniel"]
[Black "Vega Gutierrez, Sabrina"]
[WhiteFideId "2124475"]
[BlackFideId "2219026"]
[WhiteElo "2207"]
[BlackElo "2377"]
[Result "0-1"]
[Round "05"]
[TimeControl "180+2"]
[Date "2023.01.17"]
[WhiteClock "0:00:09"]
[BlackClock "0:00:05"]

1. c4 {[%clk 0:03:00]}  e5 {[%clk 0:02:58]} 2. g3 {[%clk 0:03:01]}  d6 {[%clk 0:02:55]} 3. Bg2 {[%clk 0:03:02]}  f5 {[%clk 0:02:54]} 4. Nc3 {[%clk 0:03:02]}  Nf6 {[%clk 0:02:54]} 5. e3 {[%clk 0:03:03]}  g6 {[%clk 0:02:53]} 6. Nge2 {[%clk 0:03:03]}  Bg7 {[%clk 0:02:53]} 7. O-O {[%clk 0:03:03]}  O-O {[%clk 0:02:53]} 8. b4 {[%clk 0:03:02]}  a5 {[%clk 0:02:51]} 9. b5 {[%clk 0:03:02]}  Nbd7 {[%clk 0:02:48]} 10. d3 {[%clk 0:02:56]}  h6 {[%clk 0:02:32]} 11. Rb1 {[%clk 0:02:55]}  Rb8 {[%clk 0:02:27]} 12. Nd5 {[%clk 0:02:43]}  Kh8 {[%clk 0:01:52]} 13. Ba3 {[%clk 0:02:35]}  Rf7 {[%clk 0:01:36]} 14. Nec3 {[%clk 0:02:30]}  b6 {[%clk 0:01:34]} 15. Bb2 {[%clk 0:02:22]}  Bb7 {[%clk 0:01:33]} 16. Qd2 {[%clk 0:02:18]}  Nc5 {[%clk 0:01:26]} 17. f4 {[%clk 0:02:11]}  e4 {[%clk 0:01:15]} 18. Nxf6 {[%clk 0:01:45]}  Bxf6 {[%clk 0:01:13]} 19. dxe4 {[%clk 0:01:41]}  fxe4 {[%clk 0:00:58]} 20. g4 {[%clk 0:01:13]}  Kh7 {[%clk 0:00:58]} 21. g5 {[%clk 0:01:08]}  Bg7 {[%clk 0:00:46]} 22. h4 {[%clk 0:01:01]}  Qe7 {[%clk 0:00:31]} 23. Ba1 {[%clk 0:01:01]}  hxg5 {[%clk 0:00:23]} 24. hxg5 {[%clk 0:00:57]}  Rh8 {[%clk 0:00:16]} 25. Ne2 {[%clk 0:00:50]}  Bxa1 {[%clk 0:00:14]} 26. Rxa1 {[%clk 0:00:51]}  Kg8 {[%clk 0:00:14]} 27. Ng3 {[%clk 0:00:50]}  Bc8 {[%clk 0:00:10]} 28. Qd5 {[%clk 0:00:43]}  Bb7 {[%clk 0:00:09]} 29. Qd4 {[%clk 0:00:42]}  Ne6 {[%clk 0:00:08]} 30. Qd2 {[%clk 0:00:37]}  Nc5 {[%clk 0:00:08]} 31. Qc3 {[%clk 0:00:25]}  Qe6 {[%clk 0:00:08]} 32. Ne2 {[%clk 0:00:11]}  Qg4 {[%clk 0:00:08]} 33. Nd4 {[%clk 0:00:10]}  Qg3 {[%clk 0:00:05]} 34. Qe1 {[%clk 0:00:09]}  Qg4 {[%clk 0:00:04]} 35. Qe2 {[%clk 0:00:09]}  Qg3 {[%clk 0:00:05]} 36. Qf2 {[%clk 0:00:09]}  Qh2# {[%clk 0:00:05]} 0-1


[Site "https://www.chess.com"]